Workbook

Sheet Past Buggy Report
A1: Tube Size | B1: TUBE_SIZE | C1: TUBE COLOUR | D1: STOCK NO | Q1: COUNT
A2: =_xlfn.LET( _xlpm.nRows, ROWS( _xlfn.TOCOL($B:$B,1) ), _xlpm.size, B2:INDEX(B:B, _xlpm.nRows+1), _xlpm.colour, C2:INDEX(C:C, _xlpm.nRows+1), TRIM( _xlpm.size & IF( ISNUMBER(SEARCH("CARDBOARD",_xlpm.colour))* ( (_xlpm.size="WT")+ (_xlpm.size="NT")+ (_xlpm.size="ET")+ (_xlpm.size="MT") )," C ", " P ") & IF( ISNUMBER(SEARCH(" NG",_xlpm.colour))* ( (_xlpm.size="WT")+ (_xlpm.size="NT") ), "NG","") ) ) -> WT P | B2: WT | C2: GREY | D2: 12 | Q2: 512.0
A3: WT P | B3: WT | C3: SILVER | D3: 13 | Q3: 512.0
A4: WT P | B4: WT | C4: PINK | D4: 14 | Q4: 1331.2
A5: WT C NG | B5: WT | C5: CARDBOARD NG | D5: 15 | Q5: 819.2
A6: WT C NG | B6: WT | C6: CARDBOARD NG | D6: 1 | Q6: 512.0
A7: WT C NG | B7: WT | C7: CARDBOARD NG | D7: 62 | Q7: 409.6
A8: WT C | B8: WT | C8: CARDBOARD | D8: 24 | Q8: 9110.4
A9: WT C | B9: WT | C9: CARDBOARD | D9: 45 | Q9: 5054.4
A10: WT C | B10: WT | C10: CARDBOARD | D10: 78 | Q10: 2620.8
A11: WT C | B11: WT | C11: CARDBOARD | D11: 2 | Q11: 1248.0
A12: WT C | B12: WT | C12: CARDBOARD | D12: 5 | Q12: 561.6
A13: WT C | B13: WT | C13: CARDBOARD | D13: 547 | Q13: 249.6
A14: NT P | B14: NT | C14: BLUE | D14: 215 | Q14: 1209.6
A15: NT P | B15: NT | C15: LEMON | D15: 321 | Q15: 1542.4
A16: NT C | B16: NT | C16: CARDBOARD | D16: 214 | Q16: 5529.6
A17: NT C | B17: NT | C17: CARDBOARD | D17: 255 | Q17: 2160.0
A18: NT C | B18: NT | C18: CARDBOARD | D18: 25589 | Q18: 15292.8
A19: NT C | B19: NT | C19: CARDBOARD | D19: 2558 | Q19: 19046.4
A20: NT C | B20: NT | C20: CARDBOARD | D20: 2558 | Q20: 12867.2
A21: NT C | B21: NT | C21: CARDBOARD | D21: 23 | Q21: 8859.2
A22: NT C | B22: NT | C22: CARDBOARD | D22: 626 | Q22: 2712.0
A23: NT C | B23: NT | C23: CARDBOARD | D23: 225 | Q23: 4915.2
A24: NT C | B24: NT | C24: CARDBOARD | D24: 599 | Q24: 2457.6
A25: NT C | B25: NT | C25: CARDBOARD | D25: 236 | Q25: 3254.4
A26: NT C | B26: NT | C26: CARDBOARD | D26: 269 | Q26: 3796.8
A27: NT C | B27: NT | C27: CARDBOARD | D27: 6589 | Q27: 723.2
A28: NT C | B28: NT | C28: CARDBOARD | D28: 355 | Q28: 180.8
A29: ET C | B29: ET | C29: CARDBOARD | D29: 699 | Q29: 1478.4
A30: P

Sheet Carry Over Page
A1: 1 | B1: 2 | C1: 3 | D1: 4 | I1: WT P
M2: 2352 | N2: 196 | O2: 4080 | P2: 340
A3: =_xlfn.LET( _xlpm.nRows, ROWS(_xlfn.ANCHORARRAY('Past Buggy Report'!$A$2) ), _xlfn.CHOOSECOLS( 'Past Buggy Report'!$A$2:INDEX('Past Buggy Report'!$Q:$Q, _xlpm.nRows+1 ), _xlfn.XMATCH({"Tube Size","Tube Colour","Stock No","Count"}, 'Past Buggy Report'!$A$1:$Q$1) ) ) -> WT P | B3: GREY | C3: 12 | D3: 512.0 | H3: 1024 | I3: =IFERROR( _xlfn._xlws.FILTER(_xlfn.ANCHORARRAY($A$3), _xlfn.CHOOSECOLS(_xlfn.ANCHORARRAY($A$3),1)=$I$1), "" ) -> WT P | J3: GREY | K3: 12 | L3: 512.0 | Q3: =M3*M2+N3*N2+O3*O2+P3*P2 -> 0 | R3: =L3-Q3 -> 512 | S3: =R3/M2 -> 0.2176870748 | T3: =IFERROR(_xlfn.CEILING.MATH(S3>0)*ROUNDUP(S3,0),"") -> 1 | U3: =R3/O2 -> 0.1254901961 | V3: =IFERROR(_xlfn.CEILING.MATH(U3>0)*ROUNDUP(U3,0),"") -> 1
A4: WT P | B4: SILVER | C4: 13 | D4: 512.0 | H4: 1024 | I4: WT P | J4: SILVER | K4: 13 | L4: 512.0 | Q4: =M4*M2+N4*N2+O4*O2+P4*P2 -> 0 | R4: =L4-Q4 -> 512 | S4: =R4/M2 -> 0.2176870748 | T4: =IFERROR(_xlfn.CEILING.MATH(S4>0)*ROUNDUP(S4,0),"") -> 1 | U4: =R4/O2 -> 0.1254901961 | V4: =IFERROR(_xlfn.CEILING.MATH(U4>0)*ROUNDUP(U4,0),"") -> 1
A5: WT P | B5: PINK | C5: 14 | D5: 1331.2 | H5: 1024 | I5: WT P | J5: PINK | K5: 14 | L5: 1331.2 | Q5: =M5*M2+N5*N2+O5*O2+P5*P2 -> 0 | R5: 1331.2 | S5: =R5/M2 -> 0.5659863946 | T5: 1 | U5: =R5/O2 -> 0.3262745098 | V5: 1
A6: WT C NG | B6: CARDBOARD NG | C6: 15 | D6: 819.2 | H6: 1024 | Q6: =M6*M2+N6*N2+O6*O2+P6*P2 -> 0 | R6: 0 | S6: =R6/M2 -> 0 | T6: 0 | U6: =R6/O2 -> 0 | V6: 0
A7: WT C NG | B7: CARDBOARD NG | C7: 1 | D7: 512.0 | H7: 1024 | Q7: =M7*M2+N7*N2+O7*O2+P7*P2 -> 0 | R7: 0 | S7: =R7/M2 -> 0 | T7: 0 | U7: =R7/O2 -> 0 | V7: 0
A8: WT C NG | B8: CARDBOARD NG | C8: 62 | D8: 409.6 | H8: 1024 | Q8: =M8*M2+N8*N2+O8*O2+P8*P2 -> 0 | R8: 0 | S8: =R8/M2 -> 0 | T8: 0 | U8: =R8/O2 -> 0 | V8: 0
A9: WT C | B9: CARDBOARD | C9: 24 | D9: 9110.4 | H9: 1024 | Q9: =M9*M2+N9*N2+O9*O2+P9*P2 -> 0 | R9: 0 | S9: =R9/M2 -> 0 | T9: 0 | U9: =R9/O2 -> 0 | V9: 0
A10: WT C | B10: CARDBOARD | C10: 45 | D10: 5054.4 | H10: 1024 | Q10: =M10*M2+N10*N2+O10*O2+P10*P2 -> 0 | R10: 0 | S10: =R10/M2 -> 0 | T10: 0 | U10: =R10/O2 -> 0 | V10: 0
A11: WT C | B11: CARDBOARD | C11: 78 | D11: 2620.8 | H11: 1024 | Q11: =M11*M2+N11*N2+O11*O2+P11*P2 -> 0 | R11: 0 | S11: =R11/M2 -> 0 | T11: 0 | U11: =R11/O2 -> 0 | V11: 0
A12: WT C | B12: CARDBOARD | C12: 2 | D12: 1248.0 | H12: 1024 | Q12: =M12*M2+N12*N2+O12*O2+P12*P2 -> 0 | R12: 0 | S12: =R12/M2 -> 0 | T12: 0 | U12: =R12/O2 -> 0 | V12: 0
A13: WT C | B13: CARDBOARD | C13: 5 | D13: 561.6 | H13: 1024 | Q13: =M13*M2+N13*N2+O13*O2+P13*P2 -> 0 | R13: 0 | S13: =R13/M2 -> 0 | T13: 0 | U13: =R13/O2 -> 0 | V13: 0
A14: WT C | B14: CARDBOARD | C14: 547 | D14: 249.6 | H14: 1024 | Q14: =M14*M2+N14*N2+O14*O2+P14*P2 -> 0 | R14: 0 | S14: =R14/M2 -> 0 | T14: 0 | U14: =R14/O2 -> 0 | V14: 0
A15: NT P | B15: BLUE | C15: 215 | D15: 1209.6 | H15: 1024 | Q15: =M15*M2+N15*N2+O15*O2+P15*P2 -> 0 | R15: 0 | S15: =R15/M2 -> 0 | T15: 0 | U15: =R15/O2 -> 0 | V15: 0
A16: NT P | B16: LEMON | C16: 321 | D16: 1542.4 | H16: 1024 | Q16: =M16*M2+N16*N2+O16*O2+P16*P2 -> 0 | R16: 0 | S16: =R16/M2 -> 0 | T16: =IFERROR(_xlfn.CEILING.MATH(S16>0)*ROUNDUP(S16,0),"") -> 0 | U16: =R16/O2 -> 0 | V16: 0
A17: NT C | B17: CARDBOARD | C17: 214 | D17: 5529.6 | H17: 1024 | Q17: =M17*M2+N17*N2+O17*O2+P17*P2 -> 0 | R17: 0 | S17: =R17/M2 -> 0 | T17: 0 | U17: =R17/O2 -> 0 | V17: 0
A18: NT C | B18: CARDBOARD | C18: 255 | D18: 2160.0 | H18: 1024 | Q18: =M18*M2+N18*N2+O18*O2+P18*P2 -> 0 | R18: 0 | S18: =R18/M2 -> 0 | T18: 0 | U18: =R18/O2 -> 0 | V18: 0
A19: NT C | B19: CARDBOARD | C19: 25589 | D19: 15292.8 | H19: 1024 | Q19: =M19*M2+N19*N2+O19*O2+P19*P2 -> 0 | R19: 0 | S19: =R19/M2 -> 0 | T19: 0 | U19: =R19/O2 -> 0 | V19: 0
A20: NT C | B20: CARDBOARD | C20: 2558 | D20: 19046.4 | I20: WT C
A21: NT C | B21: CARDBOARD | C21: 2558 | D21: 12867.2 | M21: 3264 | N21: 144 | O21: 192 | P21: 1440 | Q21: 360 | R21: 1200 | S21: 300
A22: NT C | B22: CARDBOARD | C22: 23 | D22: 8859.2 | H22: 624 | I22: =IF(TRIM(A3)="WT C",A3:D3,"") ->  | T22: =M22*$M$21+N22*$N$21+O22*$O$21+P22*$P$21+Q22*$Q$21+R22*$R$21+S22*S21 -> 0 | U22: =L22-T22 -> 0 | V22: =U22/M21 -> 0 | W22: =IFERROR(_xlfn.CEILING.MATH(V22>0)*ROUNDUP(V22,0),"") -> 0 | X22: =U22/P21 -> 0 | Y22: =IFERROR(_xlfn.CEILING.MATH(X22>0)*ROUNDUP(X22,0),"") -> 0 | Z22: =U22/R21 -> 0 | AA22: =IFERROR(_xlfn.CEILING.MATH(Z22>0)*ROUNDUP(Z22,0),"") -> 0
A23: NT C | B23: CARDBOARD | C23: 626 | D23: 2712.0 | H23: 624 | I23: =IF(TRIM(A4)="WT C",A4:D4,"") ->  | T23: =M23*$M$21+N23*$N$21+O23*$O$21+P23*$P$21+Q23*$Q$21+R23*$R$21+S23*S21 -> 0 | U23: 0 | V23: =U23/M21 -> 0 | W23: =IFERROR(_xlfn.CEILING.MATH(V23>0)*ROUNDUP(V23,0),"") -> 0 | X23: =U23/P21 -> 0 | Y23: =IFERROR(_xlfn.CEILING.MATH(X23>0)*ROUNDUP(X23,0),"") -> 0 | Z23: =U23/R21 -> 0 | AA23: =IFERROR(_xlfn.CEILING.MATH(Z23>0)*ROUNDUP(Z23,0),"") -> 0
A24: NT C | B24: CARDBOARD | C24: 225 | D24: 4915.2 | H24: 624 | I24: =IF(TRIM(A5)="WT C",A5:D5,"") ->  | T24: =M24*$M$21+N24*$N$21+O24*$O$21+P24*$P$21+Q24*$Q$21+R24*$R$21+S24*S21 -> 0 | U24: 0 | V24: =U24/M21 -> 0 | W24: 0 | X24: =U24/P21 -> 0 | Y24: 0 | Z24: =U24/R21 -> 0 | AA24: 0
A25: NT C | B25: CARDBOARD | C25: 599 | D25: 2457.6 | H25: 624 | I25: =IF(TRIM(A6)="WT C",A6:D6,"") ->  | T25: =M25*$M$21+N25*$N$21+O25*$O$21+P25*$P$21+Q25*$Q$21+R25*$R$21+S25*S21 -> 0 | U25: 0 | V25: =U25/M21 -> 0 | W25: 0 | X25: =U25/P21 -> 0 | Y25: 0 | Z25: =U25/R21 -> 0 | AA25: 0
A26: NT C | B26: CARDBOARD | C26: 236 | D26: 3254.4 | H26: 624 | I26: =IF(TRIM(A7)="WT C",A7:D7,"") ->  | T26: =M26*$M$21+N26*$N$21+O26*$O$21+P26*$P$21+Q26*$Q$21+R26*$R$21+S26*S21 -> 0 | U26: 0 | V26: =U26/M21 -> 0 | W26: 0 | X26: =U26/P21 -> 0 | Y26: 0 | Z26: =U26/R21 -> 0 | AA26: 0
A27: NT C | B27: CARDBOARD | C27: 269 | D27: 3796.8 | H27: 624 | I27: =IF(TRIM(A8)="WT C",A8:D8,"") ->  | T27: =M27*$M$21+N27*$N$21+O27*$O$21+P27*$P$21+Q27*$Q$21+R27*$R$21+S27*S21 -> 0 | U27: 0 | V27: =U27/M21 -> 0 | W27: 0 | X27: =U27/P21 -> 0 | Y27: 0 | Z27: =U27/R21 -> 0 | AA27: 0
A28: NT C | B28: CARDBOARD | C28: 6589 | D28: 723.2 | H28: 624 | I28: =IF(TRIM(A9)="WT C",A9:D9,"") -> WT C | J28: CARDBOARD | K28: 24 | L28: 9110.4 | T28: =M28*$M$21+N28*$N$21+O28*$O$21+P28*$P$21+Q28*$Q$21+R28*$R$21+S28*S21 -> 0 | U28: 9110.4 | V28: =U28/M21 -> 2.791176471 | W28: 3 | X28: =U28/P21 -> 6.326666667 | Y28: 7 | Z28: =U28/R21 -> 7.592 | AA28: 8
A29: NT C | B29: CARDBOARD | C29: 355 | D29: 180.8 | H29: 624 | I29: =IF(TRIM(A10)="WT C",A10:D10,"") -> WT C | J29: CARDBOARD | K29: 45 | L29: 5054.4 | T29: =M29*$M$21+N29*$N$21+O29*$O$21+P29*$P$21+Q29*$Q$21+R29*$R$21+S29*S21 -> 0 | U29: 5054.4 | V29: =U29/M21 -> 1.548529412 | W29: 2 | X29: =U29/P21 -> 3.51 | Y29: 4 | Z29: =U29/R21 -> 4.212 | AA29: 5
A30: ET C | B30: CARDBOARD | C30: 699 | D30: 1478.4 | H30: 624 | I30: =IF(TRIM(A11)="WT C",A11:D11,"") -> WT C | J30: CARDBOARD | K30: 78 | L30: 2620.8 | T30: =M30*$M$21+N30*$N$21+O30*$O$21+P30*$P$21+Q30*$Q$21+R30*$R$21+S30*S21 -> 0 | U30: 2620.8 | V30: =U30/M21 -> 0.8029411765 | W30: 1 | X30: =U30/P21 -> 1.82 | Y30: 2 | Z30: =U30/R21 -> 2.184 | AA30: 3
A31: P | B31: 0 | C31: 0 | D31: 0 | H31: 624 | I31: =IF(TRIM(A12)="WT C",A12:D12,"") -> WT C | J31: CARDBOARD | K31: 2 | L31: 1248.0 | T31: =M31*$M$21+N31*$N$21+O31*$O$21+P31*$P$21+Q31*$Q$21+R31*$R$21+S31*S21 -> 0 | U31: 1248 | V31: =U31/M21 -> 0.3823529412 | W31: 1 | X31: =U31/P21 -> 0.8666666667 | Y31: 1 | Z31: =U31/R21 -> 1.04 | AA31: 2
H32: 624 | I32: =IF(TRIM(A13)="WT C",A13:D13,"") -> WT C | J32: CARDBOARD | K32: 5 | L32: 561.6 | T32: =M32*$M$21+N32*$N$21+O32*$O$21+P32*$P$21+Q32*$Q$21+R32*$R$21+S32*S21 -> 0 | U32: 561.6 | V32: =U32/M21 -> 0.1720588235 | W32: 1 | X32: =U32/P21 -> 0.39 | Y32: 1 | Z32: =U32/R21 -> 0.468 | AA32: 1
H33: 624 | I33: =IF(TRIM(A14)="WT C",A14:D14,"") -> WT C | J33: CARDBOARD | K33: 547 | L33: 249.6 | T33: =M33*$M$21+N33*$N$21+O33*$O$21+P33*$P$21+Q33*$Q$21+R33*$R$21+S33*S21 -> 0 | U33: 249.6 | V33: =U33/M21 -> 0.07647058824 | W33: 1 | X33: =U33/P21 -> 0.1733333333 | Y33: 1 | Z33: =U33/R21 -> 0.208 | AA33: 1
H34: 624 | I34: =IF(TRIM(A15)="WT C",A15:D15,"") ->  | T34: =M34*$M$21+N34*$N$21+O34*$O$21+P34*$P$21+Q34*$Q$21+R34*$R$21+S34*S21 -> 0 | U34: 0 | V34: =U34/M21 -> 0 | W34: 0 | X34: =U34/P21 -> 0 | Y34: 0 | Z34: =U34/R21 -> 0 | AA34: 0
H35: 624 | I35: =IF(TRIM(A16)="WT C",A16:D16,"") ->  | T35: =M35*$M$21+N35*$N$21+O35*$O$21+P35*$P$21+Q35*$Q$21+R35*$R$21+S35*S21 -> 0 | U35: 0 | V35: =U35/M21 -> 0 | W35: 0 | X35: =U35/P21 -> 0 | Y35: 0 | Z35: =U35/R21 -> 0 | AA35: 0
H36: 624 | I36: =IF(TRIM(A17)="WT C",A17:D17,"") ->  | T36: =M36*$M$21+N36*$N$21+O36*$O$21+P36*$P$21+Q36*$Q$21+R36*$R$21+S36*S21 -> 0 | U36: 0 | V36: =U36/M21 -> 0 | W36: 0 | X36: =U36/P21 -> 0 | Y36: 0 | Z36: =U36/R21 -> 0 | AA36: 0
H37: 624 | I37: =IF(TRIM(A18)="WT C",A18:D18,"") ->  | T37: =M37*$M$21+N37*$N$21+O37*$O$21+P37*$P$21+Q37*$Q$21+R37*$R$21+S37*S21 -> 0 | U37: 0 | V37: =U37/M21 -> 0 | W37: 0 | X37: =U37/P21 -> 0 | Y37: 0 | Z37: =U37/R21 -> 0 | AA37: 0
H38: 624 | I38: =IF(TRIM(A19)="WT C",A19:D19,"") ->  | T38: =M38*$M$21+N38*$N$21+O38*$O$21+P38*$P$21+Q38*$Q$21+R38*$R$21+S38*S21 -> 0 | U38: 0 | V38: =U38/M21 -> 0 | W38: 0 | X38: =U38/P21 -> 0 | Y38: 0 | Z38: =U38/R21 -> 0 | AA38: 0
I39: WT C NG
M40: 1440 | N40: 360 | O40: 3264 | P40: 144 | Q40: 192
H41: 986 | I41: =IFERROR(_xlfn._xlws.FILTER(_xlfn.CHOOSECOLS('Past Buggy Report'!$B$2:$Q$600,{1,3,4,17}),'Past Buggy Report'!$B$2:$Q$600=$I$39),"") ->  | R41: =M41*$M$40+N41*$N$40+O41*$O$40+P41*$P$40+Q41*$Q$40 -> 0 | S41: =L41-R41 -> 0 | T41: =S41/M40 -> 0 | U41: =IFERROR(_xlfn.CEILING.MATH(T41>0)*ROUNDUP(T41,0),"") -> 0 | V41: =S41/O40 -> 0 | W41: =IFERROR(_xlfn.CEILING.MATH(V41>0)*ROUNDUP(V41,0),"") -> 0
H42: 986 | I42: =IFERROR(_xlfn._xlws.FILTER(_xlfn.CHOOSECOLS('Past Buggy Report'!$B$2:$Q$600,{1,3,4,17}),'Past Buggy Report'!$B$2:$Q$600=$I$39),"") ->  | R42: 0 | S42: 0 | T42: =S42/M40 -> 0 | U42: =IFERROR(_xlfn.CEILING.MATH(T42>0)*ROUNDUP(T42,0),"") -> 0 | V42: =S42/O40 -> 0 | W42: =IFERROR(_xlfn.CEILING.MATH(V42>0)*ROUNDUP(V42,0),"") -> 0
H43: 986 | I43: =IFERROR(_xlfn._xlws.FILTER(_xlfn.CHOOSECOLS('Past Buggy Report'!$B$2:$Q$600,{1,3,4,17}),'Past Buggy Report'!$B$2:$Q$600=$I$39),"") ->  | R43: 0 | S43: 0 | T43: =S43/M40 -> 0 | U43: 0 | V43: =S43/O40 -> 0 | W43: 0
H44: 986 | I44: =IFERROR(_xlfn._xlws.FILTER(_xlfn.CHOOSECOLS('Past Buggy Report'!$B$2:$Q$600,{1,3,4,17}),'Past Buggy Report'!$B$2:$Q$600=$I$39),"") ->  | R44: 0 | S44: 0 | T44: =S44/M40 -> 0 | U44: 0 | V44: =S44/O40 -> 0 | W44: 0
H45: 986 | I45: =IFERROR(_xlfn._xlws.FILTER(_xlfn.CHOOSECOLS('Past Buggy Report'!$B$2:$Q$600,{1,3,4,17}),'Past Buggy Report'!$B$2:$Q$600=$I$39),"") ->  | R45: 0 | S45: 0 | T45: =S45/M40 -> 0 | U45: 0 | V45: =S45/O40 -> 0 | W45: 0
H46: 986 | I46: =IFERROR(_xlfn._xlws.FILTER(_xlfn.CHOOSECOLS('Past Buggy Report'!$B$2:$Q$600,{1,3,4,17}),'Past Buggy Report'!$B$2:$Q$600=$I$39),"") ->  | R46: 0 | S46: 0 | T46: =S46/M40 -> 0 | U46: 0 | V46: =S46/O40 -> 0 | W46: 0
H47: 986 | I47: =IFERROR(_xlfn._xlws.FILTER(_xlfn.CHOOSECOLS('Past Buggy Report'!$B$2:$Q$600,{1,3,4,17}),'Past Buggy Report'!$B$2:$Q$600=$I$39),"") ->  | R47: 0 | S47: 0 | T47: =S47/M40 -> 0 | U47: 0 | V47: =S47/O40 -> 0 | W47: 0
H48: 986 | I48: =IFERROR(_xlfn._xlws.FILTER(_xlfn.CHOOSECOLS('Past Buggy Report'!$B$2:$Q$600,{1,3,4,17}),'Past Buggy Report'!$B$2:$Q$600=$I$39),"") ->  | R48: 0 | S48: 0 | T48: =S48/M40 -> 0 | U48: 0 | V48: =S48/O40 -> 0 | W48: 0
H49: 986 | I49: =IFERROR(_xlfn._xlws.FILTER(_xlfn.CHOOSECOLS('Past Buggy Report'!$B$2:$Q$600,{1,3,4,17}),'Past Buggy Report'!$B$2:$Q$600=$I$39),"") ->  | R49: =M49*$M$40+N49*$N$40+O49*$O$40+P49*$P$40+Q49*$Q$40 -> 0 | S49: 0 | T49: =S49/M40 -> 0 | U49: 0 | V49: =S49/O40 -> 0 | W49: 0
H50: 986 | I50: =IFERROR(_xlfn._xlws.FILTER(_xlfn.CHOOSECOLS('Past Buggy Report'!$B$2:$Q$600,{1,3,4,17}),'Past Buggy Report'!$B$2:$Q$600=$I$39),"") ->  | R50: =M50*$M$40+N50*$N$40+O50*$O$40+P50*$P$40+Q50*$Q$40 -> 0 | S50: 0 | T50: =S50/M40 -> 0 | U50: 0 | V50: =S50/O40 -> 0 | W50: 0
H51: 986 | I51: =IFERROR(_xlfn._xlws.FILTER(_xlfn.CHOOSECOLS('Past Buggy Report'!$B$2:$Q$600,{1,3,4,17}),'Past Buggy Report'!$B$2:$Q$600=$I$39),"") ->  | R51: =M51*$M$40+N51*$N$40+O51*$O$40+P51*$P$40+Q51*$Q$40 -> 0 | S51: 0 | T51: =S51/M40 -> 0 | U51: 0 | V51: =S51/O40 -> 0 | W51: 0
H52: 986 | I52: =IFERROR(_xlfn._xlws.FILTER(_xlfn.CHOOSECOLS('Past Buggy Report'!$B$2:$Q$600,{1,3,4,17}),'Past Buggy Report'!$B$2:$Q$600=$I$39),"") ->  | R52: =M52*$M$40+N52*$N$40+O52*$O$40+P52*$P$40+Q52*$Q$40 -> 0 | S52: 0 | T52: =S52/M40 -> 0 | U52: 0 | V52: =S52/O40 -> 0 | W52: 0
H53: 986 | I53: =IFERROR(_xlfn._xlws.FILTER(_xlfn.CHOOSECOLS('Past Buggy Report'!$B$2:$Q$600,{1,3,4,17}),'Past Buggy Report'!$B$2:$Q$600=$I$39),"") ->  | R53: 0 | S53: 0 | T53: =S53/M40 -> 0 | U53: 0 | V53: =S53/O40 -> 0 | W53: 0
H54: 986 | I54: =IFERROR(_xlfn._xlws.FILTER(_xlfn.CHOOSECOLS('Past Buggy Report'!$B$2:$Q$600,{1,3,4,17}),'Past Buggy Report'!$B$2:$Q$600=$I$39),"") ->  | R54: =M54*$M$40+N54*$N$40+O54*$O$40+P54*$P$40+Q54*$Q$40 -> 0 | S54: 0 | T54: =S54/M40 -> 0 | U54: 0 | V54: =S54/O40 -> 0 | W54: 0
H55: 986 | I55: =IFERROR(_xlfn._xlws.FILTER(_xlfn.CHOOSECOLS('Past Buggy Report'!$B$2:$Q$600,{1,3,4,17}),'Past Buggy Report'!$B$2:$Q$600=$I$39),"") ->  | R55: =M55*$M$40+N55*$N$40+O55*$O$40+P55*$P$40+Q55*$Q$40 -> 0 | S55: 0 | T55: =S55/M40 -> 0 | U55: 0 | V55: =S55/O40 -> 0 | W55: 0
H56: 986 | I56: =IFERROR(_xlfn._xlws.FILTER(_xlfn.CHOOSECOLS('Past Buggy Report'!$B$2:$Q$600,{1,3,4,17}),'Past Buggy Report'!$B$2:$Q$600=$I$39),"") ->  | R56: =M56*$M$40+N56*$N$40+O56*$O$40+P56*$P$40+Q56*$Q$40 -> 0 | S56: 0 | T56: =S56/M40 -> 0 | U56: 0 | V56: =S56/O40 -> 0 | W56: 0
H57: 986 | I57: =IFERROR(_xlfn._xlws.FILTER(_xlfn.CHOOSECOLS('Past Buggy Report'!$B$2:$Q$600,{1,3,4,17}),'Past Buggy Report'!$B$2:$Q$600=$I$39),"") ->  | R57: =M57*$M$40+N57*$N$40+O57*$O$40+P57*$P$40+Q57*$Q$40 -> 0 | S57: 0 | T57: =S57/M40 -> 0 | U57: 0 | V57: =S57/O40 -> 0 | W57: 0
H58: 986 | I58: =IFERROR(_xlfn._xlws.FILTER(_xlfn.CHOOSECOLS('Past Buggy Report'!$B$2:$Q$600,{1,3,4,17}),'Past Buggy Report'!$B$2:$Q$600=$I$39),"") ->  | R58: 0 | S58: 0 | T58: =S58/M40 -> 0 | U58: 0 | V58: =S58/O40 -> 0 | W58: 0
I59: NT P
M60: 4704 | N60: 392 | O60: 8160 | P60: 680
H61: 2048 | Q61: =M61*M60+N61*N60+O61*O60+P61*P60 -> 0 | R61: =L61-Q61 -> 0 | S61: =R61/M60 -> 0 | T61: =IFERROR(_xlfn.CEILING.MATH(S61>0)*ROUNDUP(S61,0),"") -> 0 | U61: =R61/O60 -> 0 | V61: =IFERROR(_xlfn.CEILING.MATH(U61>0)*ROUNDUP(U61,0),"") -> 0
H62: 2048 | Q62: =M62*M60+N62*N60+O62*O60+P62*P60 -> 0 | R62: =L62-Q62 -> 0 | S62: =R62/M60 -> 0 | T62: =IFERROR(_xlfn.CEILING.MATH(S62>0)*ROUNDUP(S62,0),"") -> 0 | U62: =R62/O60 -> 0 | V62: =IFERROR(_xlfn.CEILING.MATH(U62>0)*ROUNDUP(U62,0),"") -> 0
H63: 2048 | Q63: =M63*M60+N63*N60+O63*O60+P63*P60 -> 0 | R63: 0 | S63: =R63/M60 -> 0 | T63: 0 | U63: =R63/O60 -> 0 | V63: 0
H64: 2048 | Q64: =M64*M60+N64*N60+O64*O60+P64*P60 -> 0 | R64: 0 | S64: =R64/M60 -> 0 | T64: 0 | U64: =R64/O60 -> 0 | V64: 0
H65: 2048 | Q65: =M65*M60+N65*N60+O65*O60+P65*P60 -> 0 | R65: 0 | S65: =R65/M60 -> 0 | T65: 0 | U65: =R65/O60 -> 0 | V65: 0
H66: 2048 | Q66: =M66*M60+N66*N60+O66*O60+P66*P60 -> 0 | R66: 0 | S66: =R66/M60 -> 0 | T66: 0 | U66: =R66/O60 -> 0 | V66: 0
H67: 2048 | Q67: =M67*M60+N67*N60+O67*O60+P67*P60 -> 0 | R67: 0 | S67: =R67/M60 -> 0 | T67: 0 | U67: =R67/O60 -> 0 | V67: 0
H68: 2048 | Q68: =M68*M60+N68*N60+O68*O60+P68*P60 -> 0 | R68: 0 | S68: =R68/M60 -> 0 | T68: 0 | U68: =R68/O60 -> 0 | V68: 0
H69: 2048 | Q69: =M69*M60+N69*N60+O69*O60+P69*P60 -> 0 | R69: 0 | S69: =R69/M60 -> 0 | T69: 0 | U69: =R69/O60 -> 0 | V69: 0
H70: 2048 | Q70: =M70*M60+N70*N60+O70*O60+P70*P60 -> 0 | R70: 0 | S70: =R70/M60 -> 0 | T70: 0 | U70: =R70/O60 -> 0 | V70: 0
H71: 2048 | Q71: =M71*M60+N71*N60+O71*O60+P71*P60 -> 0 | R71: 0 | S71: =R71/M60 -> 0 | T71: 0 | U71: =R71/O60 -> 0 | V71: 0
H72: 2048 | Q72: =M72*M60+N72*N60+O72*O60+P72*P60 -> 0 | R72: 0 | S72: =R72/M60 -> 0 | T72: 0 | U72: =R72/O60 -> 0 | V72: 0
H73: 2048 | Q73: =M73*M60+N73*N60+O73*O60+P73*P60 -> 0 | R73: 0 | S73: =R73/M60 -> 0 | T73: 0 | U73: =R73/O60 -> 0 | V73: 0
H74: 2048 | Q74: =M74*M60+N74*N60+O74*O60+P74*P60 -> 0 | R74: 0 | S74: =R74/M60 -> 0 | T74: 0 | U74: =R74/O60 -> 0 | V74: 0
H75: 2048 | Q75: =M75*M60+N75*N60+O75*O60+P75*P60 -> 0 | R75: 0 | S75: =R75/M60 -> 0 | T75: 0 | U75: =R75/O60 -> 0 | V75: 0
H76: 2048 | Q76: =M76*M60+N76*N60+O76*O60+P76*P60 -> 0 | R76: 0 | S76: =R76/M60 -> 0 | T76: 0 | U76: =R76/O60 -> 0 | V76: 0
H77: 2048 | Q77: =M77*M60+N77*N60+O77*O60+P77*P60 -> 0 | R77: 0 | S77: =R77/M60 -> 0 | T77: 0 | U77: =R77/O60 -> 0 | V77: 0
I78: NT C
M79: 6528 | N79: 288 | O79: 384 | P79: 2808 | Q79: 234 | R79: 2880 | S79: 720 | T79: 1000
H80: 1808 | U80: =M80*M79+N80*N79+O80*O79+P80*P79+Q80*Q79+R80*R79+S80*S79+T80*T79 -> 0 | V80: =L80-U80 -> 0 | W80: =V80/M79 -> 0 | X80: =IFERROR(_xlfn.CEILING.MATH(W80>0)*ROUNDUP(W80,0),"") -> 0 | Y80: =V80/P79 -> 0 | Z80: =IFERROR(_xlfn.CEILING.MATH(Y80>0)*ROUNDUP(Y80,0),"") -> 0 | AA80: =V80/R79 -> 0 | AB80: =IFERROR(_xlfn.CEILING.MATH(AA80>0)*ROUNDUP(AA80,0),"") -> 0 | AC80: =V80/T79 -> 0 | AD80: =IFERROR(_xlfn.CEILING.MATH(AC80>0)*ROUNDUP(AC80,0),"") -> 0
H81: 1808 | U81: =M81*M79+N81*N79+O81*O79+P81*P79+Q81*Q79+R81*R79+S81*S79*T81*T79 -> 0 | V81: 0 | W81: =V81/M79 -> 0 | X81: 0 | Y81: =V81/P79 -> 0 | Z81: 0 | AA81: =V81/R79 -> 0 | AB81: =IFERROR(_xlfn.CEILING.MATH(AA81>0)*ROUNDUP(AA81,0),"") -> 0 | AC81: =V81/T79 -> 0 | AD81: =IFERROR(_xlfn.CEILING.MATH(AC81>0)*ROUNDUP(AC81,0),"") -> 0
H82: 1808 | U82: =M82*M79+N82*N79+O82*O79+P82*P79+Q82*Q79+R82*R79+S82*S79+T82*T79 -> 0 | V82: 0 | W82: =V82/M79 -> 0 | X82: 0 | Y82: =V82/P79 -> 0 | Z82: 0 | AA82: =V82/R79 -> 0 | AB82: 0 | AC82: =V82/T79 -> 0 | AD82: 0
H83: 1808 | U83: =M83*M79+N83*N79+O83*O79+P83*P79+Q83*Q79+R83*R79+S83*S79+T83*T79 -> 0 | V83: 0 | W83: =V83/M79 -> 0 | X83: 0 | Y83: =V83/P79 -> 0 | Z83: 0 | AA83: =V83/R79 -> 0 | AB83: 0 | AC83: =V83/T79 -> 0 | AD83: 0
H84: 1808 | U84: =M84*M79+N84*N79+O84*O79+P84*P79+Q84*Q79+R84*R79+S84*S79+T84*T79 -> 0 | V84: 0 | W84: =V84/M79 -> 0 | X84: 0 | Y84: =V84/P79 -> 0 | Z84: 0 | AA84: =V84/R79 -> 0 | AB84: 0 | AC84: =V84/T79 -> 0 | AD84: 0
H85: 1808 | U85: =M85*M79+N85*N79+O85*O79+P85*P79+Q85*Q79+R85*R79+S85*S79+T85*T79 -> 0 | V85: 0 | W85: =V85/M79 -> 0 | X85: 0 | Y85: =V85/P79 -> 0 | Z85: 0 | AA85: =V85/R79 -> 0 | AB85: 0 | AC85: =V85/T79 -> 0 | AD85: 0
H86: 1808 | U86: =M86*M79+N86*N79+O86*O79+P86*P79+Q86*Q79+R86*R79+S86*S79+T86*T79 -> 0 | V86: 0 | W86: =V86/M79 -> 0 | X86: 0 | Y86: =V86/P79 -> 0 | Z86: 0 | AA86: =V86/R79 -> 0 | AB86: 0 | AC86: =V86/T79 -> 0 | AD86: 0
H87: 1808 | U87: =M87*M79+N87*N79+O87*O79+P87*P79+Q87*Q79+R87*R79+S87*S79+T87*T79 -> 0 | V87: 0 | W87: =V87/M79 -> 0 | X87: 0 | Y87: =V87/P79 -> 0 | Z87: 0 | AA87: =V87/R79 -> 0 | AB87: 0 | AC87: =V87/T79 -> 0 | AD87: 0
H88: 1808 | U88: =M88*M79+N88*N79+O88*O79+P88*P79+Q88*Q79+R88*R79+S88*S79+T88*T79 -> 0 | V88: 0 | W88: =V88/M79 -> 0 | X88: 0 | Y88: =V88/P79 -> 0 | Z88: 0 | AA88: =V88/R79 -> 0 | AB88: 0 | AC88: =V88/T79 -> 0 | AD88: 0
H89: 1808 | U89: =M89*M79+N89*N79+O89*O79+P89*P79+Q89*Q79+R89*R79+S89*S79+T89*T79 -> 0 | V89: 0 | W89: =V89/M79 -> 0 | X89: 0 | Y89: =V89/P79 -> 0 | Z89: 0 | AA89: =V89/R79 -> 0 | AB89: 0 | AC89: =V89/T79 -> 0 | AD89: 0
H90: 1808 | U90: =M90*M79+N90*N79+O90*O79+P90*P79+Q90*Q79+R90*R79+S90*S79+T90*T79 -> 0 | V90: 0 | W90: =V90/M79 -> 0 | X90: 0 | Y90: =V90/P79 -> 0 | Z90: 0 | AA90: =V90/R79 -> 0 | AB90: 0 | AC90: =V90/T79 -> 0 | AD90: 0
H91: 1808 | U91: =M91*M79+N91*N79+O91*O79+P91*P79+Q91*Q79+R91*R79+S91*S79+T91*T79 -> 0 | V91: 0 | W91: =V91/M79 -> 0 | X91: 0 | Y91: =V91/P79 -> 0 | Z91: 0 | AA91: =V91/R79 -> 0 | AB91: 0 | AC91: =V91/T79 -> 0 | AD91: 0
H92: 1808 | U92: =M92*M79+N92*N79+O92*O79+P92*P79+Q92*Q79+R92*R79+S92*S79+T92*T79 -> 0 | V92: 0 | W92: =V92/M79 -> 0 | X92: 0 | Y92: =V92/P79 -> 0 | Z92: 0 | AA92: =V92/R79 -> 0 | AB92: 0 | AC92: =V92/T79 -> 0 | AD92: 0
H93: 1808 | U93: =M93*M79+N93*N79+O93*O79+P93*P79+Q93*Q79+R93*R79+S93*S79+T93*T79 -> 0 | V93: 0 | W93: =V93/M79 -> 0 | X93: 0 | Y93: =V93/P79 -> 0 | Z93: 0 | AA93: =V93/R79 -> 0 | AB93: 0 | AC93: =V93/T79 -> 0 | AD93: 0
H94: 1808 | U94: =M94*M79+N94*N79+O94*O79+P94*P79+Q94*Q79+R94*R79+S94*S79+T94*T79 -> 0 | V94: 0 | W94: =V94/M79 -> 0 | X94: 0 | Y94: =V94/P79 -> 0 | Z94: 0 | AA94: =V94/R79 -> 0 | AB94: 0 | AC94: =V94/T79 -> 0 | AD94: 0
H95: 1808 | U95: =M95*M79+N95*N79+O95*O79+P95*P79+Q95*Q79+R95*R79+S95*S79+T95*T79 -> 0 | V95: 0 | W95: =V95/M79 -> 0 | X95: 0 | Y95: =V95/P79 -> 0 | Z95: 0 | AA95: =V95/R79 -> 0 | AB95: 0 | AC95: =V95/T79 -> 0 | AD95: 0
H96: 1808 | U96: =M96*M79+N96*N79+O96*O79+P96*P79+Q96*Q79+R96*R79+S96*S79+T96*T79 -> 0 | V96: 0 | W96: =V96/M79 -> 0 | X96: 0 | Y96: =V96/P79 -> 0 | Z96: 0 | AA96: =V96/R79 -> 0 | AB96: 0 | AC96: =V96/T79 -> 0 | AD96: 0
I97: MS C
M98: 1872 | N98: 156
H99: 1350 | O99: =M99*M98+N99*N98 -> 0 | P99: =L99-O99 -> 0 | Q99: =P99/M98 -> 0 | R99: =IFERROR(_xlfn.CEILING.MATH(Q99>0)*ROUNDUP(Q99,0),"") -> 0
H100: 1350 | O100: =M100*M98+N100*N98 -> 0 | P100: =L100-O100 -> 0 | Q100: =P100/M98 -> 0 | R100: =IFERROR(_xlfn.CEILING.MATH(Q100>0)*ROUNDUP(Q100,0),"") -> 0
H101: 1350 | O101: =M101*M98+N101*N98 -> 0 | P101: 0 | Q101: =P101/M98 -> 0 | R101: 0
H102: 1350 | O102: =M102*M98+N102*N98 -> 0 | P102: 0 | Q102: =P102/M98 -> 0 | R102: 0
O103: =M103*M98+N103*N98 -> 0 | P103: 0 | Q103: =P103/M98 -> 0 | R103: 0
O104: =M104*M98+N104*N98 -> 0 | P104: 0 | Q104: =P104/M98 -> 0 | R104: 0
O105: =M105*M98+N105*N98 -> 0 | P105: 0 | Q105: =P105/M98 -> 0 | R105: 0
O106: =M106*M98+N106*N98 -> 0 | P106: 0 | Q106: =P106/M98 -> 0 | R106: 0
O107: =M107*M98+N107*N98 -> 0 | P107: 0 | Q107: =P107/M98 -> 0 | R107: 0
I108: ET C
M109: 1848 | N109: 84 | O109: 126
H110: 1308 | P110: =M110*M109+N110*N109+O110*O109 -> 0 | Q110: =L110-P110 -> 0 | R110: =Q110/M109 -> 0 | S110: =IFERROR(_xlfn.CEILING.MATH(R110>0)*ROUNDUP(R110,0),"") -> 0
H111: 1308 | P111: =M111*M109+N111*N109+O111*O109 -> 0 | Q111: =L111-P111 -> 0 | R111: =Q111/M109 -> 0 | S111: =IFERROR(_xlfn.CEILING.MATH(R111>0)*ROUNDUP(R111,0),"") -> 0
H112: 1308 | P112: =M112*M109+N112*N109+O112*O109 -> 0 | Q112: 0 | R112: =Q112/M109 -> 0 | S112: 0
H113: 1308 | P113: =M113*M109+N113*N109+O113*O109 -> 0 | Q113: 0 | R113: =Q113/M109 -> 0 | S113: 0
P114: =M114*M109+N114*N109+O114*O109 -> 0 | Q114: 0 | R114: =Q114/M109 -> 0 | S114: 0
